bitfinex-derivatives/quotes_SOLF0:USTF0_20250831
["timestamp","ask_amount","ask_price","bid_price","bid_amount"]
[1756638061819,59.02,203.87,203.83,4.56707853]
[1756638062019,59.02,203.87,203.81,0.03099555]
[1756638062325,59.02,203.87,203.82,4.56684338]
[1756638062515,59.02,203.87,203.83,4.56684338]
[1756638062715,59.02,203.87,203.81,0.03099555]
[1756638062915,59.02,203.87,203.82,4.5674163]
[1756638063113,59.02,203.87,203.83,4.5674163]
[1756638063518,59.02,203.87,203.81,0.03099555]
[1756638063814,59.02,203.87,203.82,4.56725578]
[1756638064013,59.02,203.87,203.83,4.56725578]
[1756638064218,59.02,203.87,203.81,0.03099555]
[1756638064415,59.02,203.87,203.82,4.56718521]
[1756638064611,59.02,203.87,203.83,4.56718521]
[1756638064814,5.45690444,203.96,203.84,12.15711982]
[1756638065020,120.16,203.95,203.85,4.56711982]
[1756638065219,0.85378869,203.94,203.86,4.56711982]
[1756638065419,0.85378869,203.94,203.87,4.56711982]
[1756638065620,0.85378869,203.94,203.88,4.56711982]
[1756638065825,0.85378869,203.94,203.84,7.59]
[1756638066025,0.85378869,203.94,203.85,4.56556676]
[1756638066321,0.85378869,203.94,203.86,4.56556676]
[1756638066521,0.85378869,203.94,203.87,4.56556676]
[1756638066723,0.85378869,203.94,203.88,4.56556676]
[1756638066925,0.85378869,203.94,203.81,7.59]
[1756638067124,0.85378869,203.94,203.82,4.56488624]
[1756638067324,0.85378869,203.94,203.83,12.15488624]
[1756638067524,0.85378869,203.94,203.84,4.56488624]
[1756638067724,0.85378869,203.94,203.85,4.56488624]
[1756638067920,0.85378869,203.94,203.86,4.56488624]
[1756638068117,0.85378869,203.94,203.87,4.56488624]
[1756638068424,0.85378869,203.94,203.83,7.59]
[1756638068624,0.85378869,203.94,203.84,4.56394803]
[1756638068825,0.85378869,203.94,203.85,4.56394803]
[1756638069025,0.85378869,203.94,203.83,7.59]
[1756638069026,0.85378869,203.94,203.86,4.56394803]
[1756638069227,0.85378869,203.94,203.83,7.59]
[1756638069428,0.85378869,203.94,203.84,4.56359714]
[1756638069627,0.85378869,203.94,203.85,4.56359714]
[1756638069827,0.85378869,203.94,203.86,4.56359714]
[1756638070022,0.85378869,203.94,203.83,7.59]
[1756638070221,0.85378869,203.94,203.84,4.56359714]
[1756638070423,0.85378869,203.94,203.85,4.56359714]
[1756638070624,5.45690444,203.92,203.8,7.6]
[1756638070820,5.45690444,203.92,203.81,4.56379566]
[1756638071027,5.45690444,203.92,203.82,4.56379566]
[1756638071229,5.45690444,203.92,203.83,4.56379566]
[1756638071424,5.45690444,203.92,203.8,7.6]
[1756638071621,5.45690444,203.92,203.81,4.57017953]
[1756638071828,5.45690444,203.9,203.77,7.6]
[1756638072030,120.2,203.89,203.78,4.57033248]
[1756638072232,120.2,203.89,203.79,4.57033248]
[1756638072421,120.2,203.89,203.8,4.57033248]
[1756638072622,120.2,203.89,203.77,7.6]
[1756638072821,120.2,203.89,203.78,4.57090521]
[1756638073030,120.2,203.89,203.79,4.57090521]
[1756638073330,120.2,203.89,203.8,4.57090521]
[1756638073530,120.2,203.89,203.77,7.6]
[1756638073730,329.78,203.88,203.78,4.57143922]
[1756638073925,329.78,203.88,203.79,4.57143922]
[1756638074128,329.78,203.88,203.81,0.03095347]
[1756638075828,349.97690444,203.88,203.81,0.03095347]
[1756638076131,20.19690444,203.86,203.81,0.03095347]
[1756638076834,20.69690444,203.85,203.81,0.03095347]
[1756638077037,0.46904653,203.8,203.71,7.6]
[1756638077335,120.3,203.79,203.72,4.57395013]
[1756638077535,120.3,203.79,203.73,4.57395013]
[1756638077735,120.3,203.79,203.74,4.57480982]
[1756638077933,120.3,203.79,203.71,7.6]
[1756638078141,120.3,203.79,203.72,4.57492272]
[1756638078332,120.3,203.79,203.71,7.6]
[1756638078333,120.3,203.79,203.73,4.57492272]
[1756638078530,120.3,203.79,203.74,4.57492272]
[1756638078737,120.3,203.79,203.71,7.6]
[1756638078935,120.3,203.79,203.72,4.57576117]
[1756638079139,120.3,203.79,203.73,4.57576117]
[1756638079343,120.3,203.79,203.74,4.57576117]
[1756638079542,120.3,203.79,203.71,7.6]
[1756638079745,120.3,203.79,203.72,4.57645616]
[1756638080041,120.3,203.79,203.73,4.57645616]
[1756638080240,120.3,203.79,203.74,4.57645616]
[1756638080443,120.3,203.79,203.71,7.6]
[1756638080640,120.3,203.79,203.72,4.57717146]
[1756638080944,120.3,203.79,203.73,4.57717146]
[1756638081142,5.45690444,203.83,203.74,4.57717146]
[1756638081339,120.26,203.82,203.71,7.6]
[1756638081538,120.26,203.82,203.72,4.57790826]
[1756638081741,120.26,203.82,203.73,4.57790826]
[1756638081943,120.26,203.82,203.74,4.57790826]
[1756638082142,120.26,203.82,203.71,7.6]
[1756638082342,120.26,203.82,203.72,4.57881197]
[1756638082544,120.26,203.82,203.73,4.57881197]
[1756638082743,120.26,203.82,203.74,4.57881197]
[1756638082945,120.26,203.82,203.75,4.57881197]
[1756638083138,125.71690444,203.82,203.71,7.6]
[1756638083340,125.71690444,203.82,203.72,4.57945293]
[1756638083541,5.45690444,203.82,203.74,7.6]
[1756638083845,120.22,203.81,203.75,4.57945293]
[1756638084045,120.22,203.81,203.74,7.6]
[1756638084245,120.22,203.81,203.75,4.57936987]
[1756638084441,5.45690444,203.84,203.77,7.6]
[1756638084642,120.26,203.83,203.77,7.6]
[1756638085146,120.26,203.82,203.63,7.6]
[1756638085444,120.26,203.82,203.65,7.6]
[1756638085644,120.26,203.82,203.67,7.6]
[1756638085843,120.26,203.82,203.69,7.6]
[1756638086044,120.26,203.82,203.68,4.58115746]
[1756638086045,120.26,203.82,203.71,7.6]
[1756638086246,120.26,203.82,203.73,7.6]
[1756638086446,120.26,203.82,203.75,7.6]
[1756638086747,120.26,203.82,203.76,4.58115746]
[1756638086947,120.29,203.82,203.78,7.6]
[1756638087843,120.26,203.82,203.78,7.6]
[1756638088040,120.26,203.82,203.63,7.6]
[1756638088246,120.26,203.82,203.65,7.6]
[1756638088448,120.26,203.82,203.67,7.6]
[1756638088748,120.26,203.82,203.69,7.6]
[1756638089047,5.48690444,203.84,203.71,7.6]
[1756638089048,0.03,203.84,203.71,7.6]
[1756638089347,120.2,203.83,203.73,7.6]
[1756638089545,120.2,203.83,203.75,7.6]
[1756638089745,120.2,203.83,203.77,7.6]
[1756638089942,120.2,203.83,203.78,4.58385295]
[1756638090241,120.2,203.83,203.8,7.6]
[1756638090448,120.2,203.83,203.81,12.18385295]
[1756638090647,120.2,203.83,203.82,12.18385295]
[1756638092049,120.2,203.83,203.82,4.58385295]
[1756638092351,120.23,203.83,203.82,4.58385295]
[1756638095559,120.23,203.83,203.82,4.5844519]
[1756638106466,120.23,203.83,203.82,4.57580542]
[1756638111868,120.2,203.83,203.82,4.57580542]
[1756638112070,5.45690444,203.87,203.82,4.57580542]
[1756638112367,329.78,203.88,203.83,4.57580542]
[1756638112368,120.18,203.86,203.83,4.57580542]
[1756638112569,120.18,203.86,203.84,4.57580542]
[1756638112767,120.18,203.86,203.85,4.57580542]
[1756638113369,120.18,203.86,203.78,7.8]
[1756638113570,120.18,203.86,203.79,4.58076067]
[1756638113866,120.18,203.86,203.8,4.58076067]
[1756638114068,120.18,203.86,203.81,4.58076067]
[1756638114269,120.18,203.86,203.78,7.8]
[1756638114270,125.63690444,203.86,203.82,4.58076067]
[1756638114471,125.63690444,203.86,203.83,4.58076067]
[1756638114770,125.63690444,203.86,203.84,4.58076067]
[1756638115070,125.63690444,203.86,203.78,7.8]
[1756638115270,5.45690444,203.85,203.79,4.5821121]
[1756638115471,5.45690444,203.85,203.8,4.5821121]
[1756638115771,5.45690444,203.85,203.81,4.5821121]
[1756638115970,5.45690444,203.85,203.82,4.5821121]
[1756638116171,5.45690444,203.85,203.83,4.5821121]
[1756638116370,5.45690444,203.85,203.84,4.5821121]
[1756638116978,5.45690444,203.85,203.78,7.8]
[1756638117173,5.45690444,203.85,203.79,4.58389998]
[1756638117365,5.45690444,203.85,203.8,4.58389998]
[1756638117563,5.45690444,203.85,203.81,4.58389998]
[1756638117864,5.45690444,203.85,203.82,4.58389998]
[1756638118065,5.45690444,203.85,203.83,4.58389998]
[1756638118264,5.45690444,203.85,203.84,4.58389998]
[1756638121574,5.95690444,203.85,203.84,4.58389998]
[1756638121774,8.68535667,203.85,203.75,7.8]
[1756638122074,5.49453071,203.82,203.76,4.58424163]
[1756638122271,120.16,203.81,203.77,4.58424163]
[1756638122472,120.16,203.81,203.78,4.58424163]
[1756638122672,120.16,203.81,203.79,4.58424163]
[1756638122872,120.16,203.81,203.8,4.58424163]
[1756638122873,125.65453071,203.81,203.8,4.58424163]
[1756638123075,125.65453071,203.81,203.75,7.8]
[1756638126172,5.49453071,203.8,203.75,7.8]
[1756638126373,125.65453071,203.81,203.66,7.8]
[1756638128178,125.65453071,203.81,203.66,11.91813715]
[1756638128377,125.65453071,203.81,203.67,7.9]
[1756638131575,5.49453071,203.84,203.69,4.11813715]
[1756638131778,120.18,203.8,203.7,7.9]
[1756638132282,120.18,203.8,203.72,7.9]
[1756638132481,120.18,203.8,203.74,7.9]
[1756638132679,120.18,203.8,203.75,4.65084775]
[1756638132872,120.18,203.8,203.76,4.65084775]
[1756638133077,120.18,203.8,203.78,7.9]
[1756638133278,120.18,203.8,203.79,4.65084775]
[1756638137489,120.18,203.8,203.79,4.65116175]
[1756638139393,5.49453071,203.82,203.79,4.65116175]
[1756638139594,120.16,203.8,203.68,7.9]
[1756638139795,120.16,203.8,203.7,7.9]
[1756638139994,120.16,203.8,203.72,7.9]
[1756638140289,120.16,203.8,203.74,7.9]
[1756638140493,120.16,203.8,203.75,4.59806722]
[1756638140694,120.16,203.8,203.77,7.9]
[1756638140887,120.16,203.8,203.78,4.59806722]
[1756638141087,120.16,203.8,203.79,4.59806722]
[1756638141294,5.49453071,203.84,203.8,7.9]
[1756638141493,120.16,203.83,203.81,4.59806722]
[1756638141687,120.16,203.83,203.82,4.59806722]
[1756638142594,120.16,203.83,203.82,12.49806722]
[1756638142801,120.16,203.83,203.82,4.59806722]
[1756638143600,120.18,203.83,203.82,4.59806722]
[1756638148104,120.18,203.83,203.82,4.65649585]
[1756638148405,120.18,203.83,203.75,7.9]
[1756638150408,0.02,203.82,203.75,7.9]
[1756638152208,125.65453071,203.83,203.75,7.9]
[1756638153110,0.02,203.81,203.75,7.9]
[1756638153305,5.49453071,203.82,203.69,7.9]
[1756638153504,5.49453071,203.81,203.69,7.9]
[1756638154311,0.02,203.8,203.69,7.9]
[1756638154905,5.51453071,203.8,203.69,7.9]
[1756638157611,5.49453071,203.8,203.69,7.9]
[1756638163214,5.49453071,203.79,203.69,7.9]
[1756638164015,120.16,203.83,203.69,7.9]
[1756638164016,5.49453071,203.78,203.69,7.9]
[1756638164218,5.49453071,203.77,203.69,7.9]
[1756638164513,30.82,203.76,203.69,7.9]
[1756638174722,30.82,203.76,203.54,8.1]
[1756638174723,36.31453071,203.76,203.62,7.87]
[1756638175322,30.82,203.76,203.62,7.87]
[1756638176326,48.02,203.75,203.62,7.87]
[1756638179734,5.49453071,203.77,203.62,7.87]
[1756638180126,5.12,203.76,203.62,7.87]
[1756638180334,5.49453071,203.77,203.62,7.87]
[1756638180530,12.94,203.75,203.62,7.87]
[1756638181230,5.49453071,203.77,203.62,7.87]
[1756638181524,29.02,203.74,203.62,7.87]
[1756638182633,41.3,203.73,203.62,7.87]
[1756638182934,5.49453071,203.77,203.62,7.87]
[1756638183231,51.92,203.72,203.62,7.87]
[1756638184533,62.0,203.71,203.62,7.87]
[1756638184830,344.64,203.79,203.55,7.87]
[1756638184831,62.0,203.7,203.55,7.87]
[1756638185031,75.68,203.69,203.55,7.87]
[1756638187540,0.04,203.68,203.55,7.87]
[1756638188044,75.68,203.69,203.55,7.87]
[1756638188637,0.04,203.68,203.55,7.87]
[1756638188837,75.68,203.69,203.55,7.87]
[1756638189044,0.04,203.68,203.55,7.87]
[1756638189543,75.68,203.69,203.55,7.87]
[1756638189743,0.04,203.68,203.55,7.87]
[1756638190345,75.68,203.69,203.55,7.87]
[1756638190548,0.04,203.67,203.55,7.87]
[1756638190744,5.49453071,203.68,203.55,7.87]
[1756638191449,0.04,203.67,203.55,7.87]
[1756638191649,5.49453071,203.68,203.55,7.87]
[1756638191950,0.04,203.67,203.55,7.87]
[1756638192246,5.49453071,203.68,203.55,7.87]
[1756638192443,0.04,203.67,203.55,7.87]
[1756638192752,5.49453071,203.68,203.55,7.87]
[1756638193250,0.04,203.65,203.55,7.87]
[1756638193447,330.06,203.65,203.55,7.87]
[1756638193950,0.04,203.64,203.55,7.87]
[1756638194347,330.06,203.65,203.55,7.87]
[1756638194649,0.04,203.64,203.55,7.87]
[1756638195252,330.06,203.65,203.55,7.87]
[1756638195940,0.04,203.64,203.55,7.87]
[1756638196145,330.06,203.65,203.55,7.87]
[1756638197042,350.29453071,203.65,203.43,7.89]
[1756638197246,5.49453071,203.64,203.43,7.89]
[1756638197446,5.49453071,203.63,203.43,7.89]
[1756638197649,120.16,203.62,203.43,7.89]
[1756638198551,0.04,203.61,203.43,7.89]
[1756638199251,120.16,203.62,203.43,7.89]
[1756638199651,0.04,203.61,203.43,7.89]
[1756638199852,0.04,203.6,203.43,7.89]
[1756638200054,14.74,203.61,203.43,7.89]
[1756638200462,0.04,203.6,203.43,7.89]
[1756638201151,14.74,203.61,203.43,7.89]
[1756638201351,0.04,203.6,203.43,7.89]
[1756638201556,14.74,203.61,203.43,7.89]
[1756638201746,0.04,203.6,203.43,7.89]
[1756638202054,14.74,203.61,203.43,7.89]
[1756638202456,0.04,203.6,203.43,7.89]
[1756638202659,20.23453071,203.61,203.43,7.89]
[1756638202851,0.04,203.6,203.43,7.89]
[1756638203154,20.23453071,203.61,203.43,7.89]
[1756638203351,0.04,203.6,203.43,7.89]
[1756638203553,20.23453071,203.61,203.43,7.89]
[1756638203955,0.03,203.6,203.43,7.89]
[1756638204156,20.23453071,203.6,203.43,7.89]
[1756638204355,14.74,203.6,203.43,7.89]
[1756638204557,0.03,203.59,203.43,7.89]
[1756638204857,20.23453071,203.6,203.43,7.89]
[1756638205051,0.03,203.59,203.43,7.89]
[1756638205559,20.23453071,203.6,203.43,7.89]
[1756638205753,34.08,203.59,203.43,7.89]
[1756638205957,0.03,203.58,203.43,7.89]
[1756638206753,34.24,203.57,203.43,7.89]
[1756638207159,45.6,203.56,203.43,7.89]
[1756638207459,45.63,203.56,203.43,7.89]
[1756638207855,0.03,203.55,203.43,7.89]
[1756638216361,45.6,203.56,203.43,7.89]
[1756638216563,0.03,203.55,203.43,7.89]
[1756638217066,60.36,203.56,203.43,7.89]
[1756638217264,0.03,203.55,203.43,7.89]
[1756638217564,0.05,203.55,203.43,7.89]
[1756638218464,45.6,203.56,203.43,7.89]
[1756638218964,0.05,203.55,203.43,7.89]
[1756638220064,61.74,203.54,203.43,7.89]
[1756638222766,72.52,203.53,203.43,7.89]
[1756638225371,74.08,203.52,203.43,7.89]
[1756638225869,71.32,203.51,203.43,7.89]
[1756638228563,0.05,203.53,203.43,7.89]
[1756638228766,5.18,203.53,203.43,7.89]
[1756638229272,0.05,203.58,203.43,7.89]
[1756638229569,12.45,203.57,203.43,7.89]
[1756638229770,12.4,203.56,203.43,7.89]
[1756638237970,12.4,203.56,203.44,7.73]
[1756638238173,12.4,203.56,203.45,11.85269951]
[1756638238372,12.4,203.56,203.46,7.73]
[1756638241475,0.05,203.55,203.46,7.73]
[1756638242075,12.4,203.56,203.46,7.73]
[1756638242876,0.05,203.55,203.46,7.73]
[1756638243375,12.4,203.56,203.46,7.73]
[1756638244372,0.05,203.55,203.41,7.73]
[1756638244977,12.4,203.56,203.41,7.73]
[1756638245375,0.05,203.55,203.41,7.73]
[1756638245576,12.4,203.56,203.41,7.73]
[1756638246176,0.05,203.55,203.41,7.73]
[1756638246376,12.4,203.56,203.41,7.73]
[1756638246577,0.05,203.55,203.41,7.73]
[1756638246978,0.05,203.54,203.36,7.73]
[1756638247176,5.54453071,203.54,203.36,7.73]
[1756638247475,0.05,203.53,203.36,7.73]
[1756638247676,5.49453071,203.54,203.36,7.73]
[1756638247871,0.03,203.53,203.36,7.73]
[1756638248180,5.49453071,203.54,203.36,7.73]
[1756638248579,0.03,203.53,203.36,7.73]
[1756638248775,5.49453071,203.54,203.36,7.73]
[1756638249182,2.29,203.53,203.36,7.73]
[1756638249775,0.03,203.52,203.36,7.73]
[1756638250076,2.26,203.53,203.36,7.73]
[1756638250275,0.03,203.52,203.36,7.73]
[1756638251480,2.26,203.53,203.36,7.73]
[1756638251879,0.03,203.52,203.36,7.73]
[1756638252081,2.26,203.53,203.36,7.73]
[1756638252581,0.03,203.52,203.36,7.73]
[1756638252875,2.26,203.53,203.36,7.73]
[1756638253076,0.03,203.52,203.36,7.73]
[1756638253682,2.26,203.53,203.36,7.73]
[1756638254181,0.03,203.52,203.36,7.73]
[1756638254775,2.26,203.53,203.36,7.73]
[1756638255279,0.03,203.52,203.36,7.73]
[1756638255685,2.26,203.53,203.36,7.73]
[1756638255885,0.03,203.52,203.36,7.73]
[1756638256086,2.26,203.53,203.36,7.73]
[1756638256288,0.03,203.52,203.36,7.73]
[1756638256885,2.26,203.53,203.36,7.73]
[1756638257082,0.03,203.52,203.36,7.73]
[1756638257282,2.26,203.53,203.36,7.73]
[1756638257483,0.03,203.52,203.36,7.73]
[1756638258382,12.68,203.51,203.36,7.73]
[1756638258588,0.03,203.52,203.36,7.73]
[1756638259091,330.32,203.54,203.36,11.85269951]
[1756638259280,12.3,203.52,203.37,7.32]
[1756638259989,12.3,203.52,203.37,11.44269951]
[1756638260194,12.3,203.52,203.38,7.32]
[1756638261492,0.03,203.51,203.38,7.32]
[1756638263593,12.3,203.52,203.38,7.32]
[1756638263888,0.03,203.51,203.38,7.32]
[1756638265593,0.8855729,203.51,203.38,7.32]
[1756638267495,0.03,203.51,203.38,7.32]
[1756638268293,12.3,203.52,203.38,7.32]
[1756638268894,12.3,203.52,203.39,7.32]
[1756638271099,12.3,203.52,203.4,7.32]
[1756638271898,12.3,203.52,203.41,7.32]
[1756638272099,12.3,203.52,203.42,7.32]
[1756638274697,12.33,203.52,203.42,7.32]
[1756638277512,0.03,203.51,203.42,7.32]
[1756638277909,12.3,203.52,203.42,7.32]
[1756638278216,0.03,203.51,203.42,7.32]
[1756638278716,12.3,203.52,203.42,7.32]
[1756638278905,0.03,203.51,203.42,7.32]
[1756638279306,12.3,203.52,203.42,7.32]
[1756638279708,12.3,203.52,203.38,7.48]
[1756638279917,0.03,203.51,203.38,7.48]
[1756638280117,12.3,203.52,203.38,7.48]
[1756638280818,0.03,203.51,203.38,7.48]
[1756638281219,12.3,203.52,203.38,7.48]
[1756638281417,0.03,203.51,203.38,7.48]
[1756638281616,12.3,203.52,203.38,7.48]
[1756638282315,0.03,203.51,203.38,7.48]
[1756638282520,12.3,203.52,203.38,7.48]
[1756638283021,0.03,203.51,203.38,7.48]
[1756638283221,12.3,203.52,203.38,7.48]
[1756638283421,0.03,203.51,203.38,7.48]
[1756638283621,12.3,203.52,203.38,7.48]
[1756638284119,0.03,203.51,203.38,7.48]
[1756638284819,12.3,203.52,203.38,7.48]
[1756638285124,0.03,203.51,203.38,7.48]
[1756638285824,12.3,203.52,203.38,7.48]
[1756638286624,17.79453071,203.52,203.38,7.48]
[1756638286820,0.03,203.51,203.38,7.48]
[1756638287225,17.79453071,203.52,203.38,7.48]
[1756638287522,0.03,203.51,203.38,7.48]
[1756638288321,17.79453071,203.52,203.38,7.48]
[1756638288517,0.03,203.51,203.38,7.48]
[1756638288714,17.79453071,203.52,203.38,7.48]
[1756638289123,0.03,203.51,203.38,7.48]
[1756638290120,0.03,203.51,203.4,7.48]
[1756638290625,0.03,203.51,203.41,4.57541061]
[1756638290815,0.03,203.51,203.43,7.48]
[1756638291017,0.03,203.51,203.45,7.48]
[1756638291223,0.03,203.51,203.47,7.48]
[1756638291522,0.03,203.51,203.48,4.57541061]
[1756638291719,0.03,203.52,203.49,4.57541061]
[1756638292028,0.03,203.52,203.5,4.57541061]
[1756638292228,0.03,203.52,203.51,4.57541061]
[1756638295729,0.03,203.52,203.46,7.48]
[1756638296432,125.91453071,203.54,203.46,7.48]
[1756638297124,120.42,203.54,203.46,7.48]
[1756638297428,125.91453071,203.54,203.46,7.48]
[1756638298631,120.42,203.54,203.46,7.48]
[1756638300833,0.8554362,203.57,203.46,7.48]
[1756638301126,8.18535667,203.62,203.46,7.48]
[1756638301127,120.42,203.58,203.46,11.6135847]
[1756638301327,120.42,203.58,203.47,7.48]
[1756638301729,120.42,203.58,203.48,4.51073179]
[1756638301930,120.42,203.58,203.49,11.99073179]
[1756638302130,120.42,203.58,203.51,7.48]
[1756638302325,120.42,203.58,203.52,4.51073179]
[1756638302530,120.42,203.58,203.54,7.48]
[1756638302731,120.42,203.58,203.55,11.99073179]
[1756638302931,120.42,203.58,203.56,4.51073179]
[1756638303123,120.42,203.58,203.55,7.48]
[1756638303124,120.42,203.58,203.57,4.51073179]
[1756638303831,120.45,203.58,203.57,4.51073179]
[1756638305137,120.95,203.58,203.57,4.51073179]
[1756638305536,121.80516292,203.58,203.51,7.48]
[1756638305732,0.03,203.57,203.52,4.50767936]
[1756638305933,0.03,203.57,203.53,4.50767936]
[1756638306134,121.27516292,203.58,203.54,4.50767936]
[1756638306334,121.27516292,203.58,203.51,7.48]
[1756638306335,121.27516292,203.58,203.55,4.50767936]
[1756638306537,0.03,203.57,203.56,4.50767936]
[1756638306737,121.27516292,203.58,203.56,4.47767936]
[1756638306937,126.76969363,203.58,203.43,7.48]
[1756638307539,5.49453071,203.57,203.43,7.48]
[1756638308437,120.38,203.56,203.43,7.48]
[1756638308741,120.38,203.56,203.44,7.25]
[1756638310239,120.46,203.56,203.44,7.25]
[1756638310641,120.46,203.56,203.44,11.3835847]
[1756638310841,120.46,203.56,203.45,7.25]
[1756638312145,330.32,203.6,203.47,7.25]
[1756638312348,120.46,203.59,203.47,7.25]
[1756638313141,120.46,203.59,203.47,11.3835847]
[1756638313339,120.46,203.59,203.48,7.25]
[1756638314745,120.46,203.59,203.47,4.1335847]
[1756638314945,120.46,203.59,203.48,7.25]
[1756638317643,120.46,203.59,203.49,7.25]
[1756638318748,120.46,203.59,203.51,7.25]
[1756638318946,120.46,203.59,203.53,7.25]
[1756638319142,120.46,203.59,203.54,4.53611738]
[1756638319349,120.46,203.59,203.56,7.25]
[1756638319548,120.46,203.59,203.57,11.78611738]
[1756638319750,120.46,203.59,203.58,4.53611738]
[1756638320754,5.49413751,203.69,203.58,11.78611738]
[1756638320955,120.42,203.68,203.59,4.53611738]
[1756638321155,0.85484782,203.67,203.6,4.53611738]
[1756638321356,0.85484782,203.67,203.61,4.53611738]
[1756638321650,0.85484782,203.67,203.62,4.53611738]
[1756638321856,0.85484782,203.67,203.63,4.53611738]
[1756638322056,0.85484782,203.67,203.64,4.53611738]
[1756638322254,120.42,203.68,203.58,7.25]
[1756638322451,120.42,203.68,203.59,4.53000716]
[1756638322650,120.42,203.68,203.6,4.53000716]
[1756638322850,120.42,203.68,203.61,4.53000716]
[1756638323054,120.42,203.68,203.62,4.53000716]
[1756638323253,120.42,203.68,203.63,4.53000716]
[1756638323455,120.42,203.68,203.64,4.53000716]
[1756638323757,120.42,203.68,203.65,4.53000716]
[1756638323953,120.42,203.68,203.58,7.25]
[1756638324148,120.42,203.68,203.59,4.5275389]
[1756638324353,120.42,203.68,203.6,4.5275389]
[1756638324556,120.42,203.68,203.61,4.5275389]
[1756638324758,120.42,203.68,203.62,4.5275389]
[1756638324956,120.42,203.68,203.63,4.5275389]
[1756638325158,120.42,203.68,203.64,4.5275389]
[1756638325357,120.42,203.68,203.58,7.25]
[1756638325558,120.42,203.68,203.6,7.25]
[1756638325759,120.42,203.68,203.61,4.5250024]
[1756638326060,120.42,203.68,203.62,4.5250024]
[1756638326256,120.42,203.68,203.63,11.7750024]
[1756638326452,120.42,203.68,203.64,4.5250024]
[1756638326652,120.42,203.68,203.65,4.5250024]
[1756638326860,120.42,203.68,203.52,7.25]
[1756638327059,120.42,203.68,203.54,7.25]
[1756638327260,120.42,203.68,203.51,11.36]
[1756638327261,120.42,203.68,203.56,7.25]
[1756638327463,120.42,203.68,203.58,7.25]
[1756638327759,120.42,203.68,203.6,7.25]
[1756638327959,120.42,203.68,203.61,4.52377425]
[1756638328260,120.42,203.68,203.62,4.52377425]
[1756638328458,120.42,203.68,203.63,4.52377425]
[1756638328655,120.42,203.68,203.64,4.52377425]
[1756638328855,120.42,203.68,203.65,4.52377425]
[1756638329054,120.42,203.68,203.66,4.52377425]
[1756638329257,120.42,203.68,203.6,7.25]
[1756638329456,120.42,203.68,203.61,4.51960489]
[1756638329657,120.42,203.68,203.62,4.51960489]
[1756638329965,120.42,203.68,203.63,4.51960489]
[1756638330257,120.42,203.68,203.64,4.51960489]
[1756638330455,120.42,203.68,203.65,4.51960489]
[1756638330655,120.42,203.68,203.66,4.51960489]
[1756638330861,120.42,203.68,203.6,7.25]
[1756638331060,120.42,203.68,203.61,4.519162]
[1756638331262,120.42,203.68,203.62,4.519162]